fUSD/lending_fUSD_20240518
["ID","MTS","AMOUNT","RATE_DAILY","PERIOD"]
[327393460,1716040263741,-500.0,0.00028767,2]
[327393461,1716040263751,-597.72972133,0.00028767,2]
[327393462,1716040263762,-500.0,0.00028767,2]
[327393463,1716040263772,-500.0,0.00028767,2]
[327393464,1716040263782,-500.0,0.00028767,2]
[327393465,1716040263792,-1233.38,0.00028767,2]
[327393466,1716040263802,-500.0,0.00028767,2]
[327393467,1716040263811,-647.86,0.00028767,2]
[327393468,1716040263821,-500.0,0.00028767,2]
[327393469,1716040263830,-3001.93,0.00028767,2]
[327393470,1716040263840,-196.94,0.00028767,2]
[327393471,1716040263849,-500.0,0.00028767,2]
[327393472,1716040263859,-1093.23,0.00028767,2]
[327393473,1716040263872,-500.0,0.00028767,2]
[327393474,1716040263882,-500.0,0.00028767,2]
[327393475,1716040263892,-544.14,0.00028767,2]
[327393476,1716040263901,-386.36383071,0.00028767,2]
[327393477,1716040263912,-500.0,0.00028767,2]
[327393478,1716040263922,-500.0,0.00028767,2]
[327393479,1716040263932,-1402.06,0.00028767,2]
[327393480,1716040263944,-959.13,0.00028767,2]
[327393481,1716040263954,-620.57499884,0.00028767,2]
[327393482,1716040263963,-500.0,0.00028767,2]
[327393483,1716040263973,-500.0,0.00028767,2]
[327393484,1716040263982,-500.0,0.00028767,2]
[327393485,1716040263992,-500.0,0.00028767,2]
[327393486,1716040264001,-500.0,0.00028767,2]
[327393487,1716040264011,-500.0,0.00028767,2]
[327393488,1716040264020,-500.0,0.00028767,2]
[327393489,1716040264030,-500.0,0.00028767,2]
[327393490,1716040264040,-3017.04,0.00028767,2]
[327393491,1716040264049,-500.0,0.00028767,2]
[327393492,1716040264059,-533.05,0.00028767,2]
[327393493,1716040264070,-500.0,0.00028767,2]
[327393494,1716040264080,-1788.12,0.00028767,2]
[327393495,1716040264089,-500.0,0.00028767,2]
[327393496,1716040264098,-304.09249359,0.00028767,2]
[327393497,1716040264108,-980.4,0.00028767,2]
[327393498,1716040264118,-714.06,0.00028767,2]
[327393499,1716040264127,-500.0,0.00028767,2]
[327393500,1716040264137,-500.0,0.00028767,2]
[327393501,1716040264147,-915.26,0.00028767,2]
[327393502,1716040264157,-531.06464378,0.00028767,2]
[327393503,1716040264168,-2281.2,0.00028767,2]
[327393504,1716040264178,-500.0,0.00028767,2]
[327393505,1716040264188,-969.27,0.00028767,2]
[327393506,1716040264198,-500.0,0.00028767,2]
[327393507,1716040264208,-1067.09,0.00028767,2]
[327393508,1716040264218,-1797.23,0.00028767,2]
[327393509,1716040264228,-1506.83,0.00028767,2]
[327393510,1716040264237,-737.86,0.00028767,2]
[327393511,1716040264248,-500.0,0.00028767,2]
[327393512,1716040264259,-625.58,0.00028767,2]
[327393513,1716040264268,-500.0,0.00028767,2]
[327393514,1716040264280,-500.0,0.00028767,2]
[327393515,1716040264290,-500.0,0.00028767,2]
[327393516,1716040264299,-500.0,0.00028767,2]
[327393517,1716040264309,-3336.88,0.00028767,2]
[327393518,1716040264319,-6913.64,0.00028767,2]
[327393519,1716040264329,-709.55,0.00028767,2]
[327393520,1716040264338,-794.08,0.00028767,2]
[327393521,1716040264348,-550.69488479,0.00028767,2]
[327393522,1716040264357,-2267.04,0.00028767,2]
[327393523,1716040264366,-5959.23,0.00028767,2]
[327393524,1716040264376,-634.90657545,0.00028767,2]
[327393525,1716040264385,-500.0,0.00028767,2]
[327393526,1716040264394,-586.84,0.00028767,2]
[327393527,1716040264404,-840.47,0.00028767,2]
[327393528,1716040264414,-2092.24,0.00028767,2]
[327393529,1716040264424,-500.0,0.00028767,2]
[327393530,1716040264433,-594.07,0.00028767,2]
[327393531,1716040264443,-500.0,0.00028767,2]
[327393532,1716040264452,-354.01793935,0.00028767,2]
[327393533,1716040264462,-500.0,0.00028767,2]
[327393534,1716040264472,-732.23,0.00028767,2]
[327393535,1716040264482,-500.0,0.00028767,2]
[327393536,1716040264493,-735.33,0.00028767,2]
[327393537,1716040264502,-365.6027329,0.00028767,2]
[327393538,1716040264511,-500.0,0.00028767,2]
[327393539,1716040264520,-500.0,0.00028767,2]
[327393540,1716040264530,-500.0,0.00028767,2]
[327393541,1716040264540,-8945.82,0.00028767,2]
[327393542,1716040264550,-2493.68,0.00028767,2]
[327393543,1716040264559,-417.09834131,0.00028767,2]
[327393544,1716040264569,-500.0,0.00028767,2]
[327393545,1716040264579,-1410.43,0.00028767,2]
[327393546,1716040264589,-500.0,0.00028767,2]
[327393547,1716040264599,-1603.71,0.00028767,2]
[327393548,1716040264608,-500.0,0.00028767,2]
[327393549,1716040264617,-1234.82,0.00028767,2]
[327393550,1716040264627,-500.0,0.00028767,2]
[327393551,1716040264637,-500.0,0.00028767,2]
[327393552,1716040264647,-500.0,0.00028767,2]
[327393553,1716040264657,-964.54,0.00028767,2]
[327393554,1716040264667,-906.95,0.00028767,2]
[327393555,1716040264677,-278.57973342,0.00028767,2]
[327393556,1716040264687,-2869.47,0.00028767,2]
[327393557,1716040264697,-643.98,0.00028767,2]
[327393558,1716040264706,-459.10213806,0.00028767,2]
[327393559,1716040264716,-500.0,0.00028767,2]
[327393560,1716040264726,-739.56,0.00028767,2]
[327393561,1716040264735,-1338.53,0.00028767,2]
[327393562,1716040264747,-500.0,0.00028767,2]
[327393563,1716040264756,-500.0,0.00028767,2]
[327393564,1716040264765,-561.33,0.00028767,2]
[327393565,1716040264775,-702.2,0.00028767,2]
[327393566,1716040264784,-1490.89,0.00028767,2]
[327393567,1716040264794,-1386.7,0.00028767,2]
[327393568,1716040264803,-500.0,0.00028767,2]
[327393569,1716040264812,-500.0,0.00028767,2]
[327393570,1716040264822,-775.1,0.00028767,2]
[327393571,1716040264832,-935.89,0.00028767,2]
[327393572,1716040264842,-545.32,0.00028767,2]
[327393573,1716040264852,-300.62580269,0.00028767,2]
[327393574,1716040264865,-561.56,0.00028767,2]
[327393575,1716040264875,-500.0,0.00028767,2]
[327393576,1716040264884,-500.0,0.00028767,2]
[327393577,1716040264894,-386.94,0.00028767,2]
[327393578,1716040264903,-500.0,0.00028767,2]
[327393579,1716040264912,-619.78,0.00028767,2]
[327393580,1716040264922,-621.39,0.00028767,2]
[327393581,1716040264931,-500.0,0.00028767,2]
[327393582,1716040264941,-500.0,0.00028767,2]
[327393583,1716040264953,-585.77,0.00028767,2]
[327393584,1716040264962,-3010.58,0.00028767,2]
[327393585,1716040264972,-3560.8,0.00028767,2]
[327393586,1716040264982,-500.0,0.00028767,2]
[327393587,1716040264991,-500.0,0.00028767,2]
[327393588,1716040265001,-599.07,0.00028767,2]
[327393589,1716040265010,-500.0,0.00028767,2]
[327393590,1716040265020,-500.0,0.00028767,2]
[327393591,1716040265029,-192.8077609,0.00028767,2]
[327393592,1716040265039,-3063.61,0.00028767,2]
[327393593,1716040265049,-500.0,0.00028767,2]
[327393594,1716040265058,-653.42,0.00028767,2]
[327393595,1716040265067,-814.87,0.00028767,2]
[327393596,1716040265077,-698.86,0.00028767,2]
[327393597,1716040265086,-1099.41,0.00028767,2]
[327393598,1716040265096,-426.84992905,0.00028767,2]
[327393599,1716040265105,-635.05204133,0.00028767,2]
[327393600,1716040265115,-1201.24,0.00028767,2]
[327393601,1716040265124,-500.0,0.00028767,2]
[327393602,1716040265133,-622.78,0.00028767,2]
[327393603,1716040265143,-217.16,0.00028767,2]
[327393604,1716040265153,-500.0,0.00028767,2]
[327393605,1716040265162,-674.85,0.00028767,2]
[327393606,1716040265171,-656.56,0.00028767,2]
[327393607,1716040265180,-590.6,0.00028767,2]
[327393608,1716040265190,-500.0,0.00028767,2]
[327393609,1716040265199,-783.59,0.00028767,2]
[327393610,1716040265208,-1179.24,0.00028767,2]
[327393611,1716040265218,-874.12,0.00028767,2]
[327393612,1716040265227,-500.0,0.00028767,2]
[327393613,1716040265236,-265.71564762,0.00028767,2]
[327393614,1716040265248,-500.0,0.00028767,2]
[327393615,1716040265257,-558.78,0.00028767,2]
[327393616,1716040265267,-2108.16,0.00028767,2]
[327393617,1716040265276,-151.0,0.00028767,7]
[327393618,1716040265286,-1661.91,0.00028767,2]
[327393619,1716040265296,-666.13,0.00028767,2]
[327393620,1716040265305,-2781.87,0.00028767,2]
[327393621,1716040265314,-500.0,0.00028767,2]
[327393622,1716040265324,-500.0,0.00028767,2]
[327393623,1716040265334,-893.42,0.00028767,2]
[327393624,1716040265345,-1207.31,0.00028767,2]
[327393625,1716040265355,-500.0,0.00028767,2]
[327393626,1716040265364,-840.57,0.00028767,2]
[327393627,1716040265375,-1041.69,0.00028767,2]
[327393628,1716040265384,-1214.32,0.00028767,2]
[327393629,1716040265393,-1712.9,0.00028767,2]
[327393630,1716040265402,-500.0,0.00028767,2]
[327393631,1716040265413,-528.57690218,0.00028767,2]
[327393632,1716040265423,-500.0,0.00028767,2]
[327393633,1716040265432,-2408.0,0.00028767,2]
[327393634,1716040265442,-1126.37,0.00028767,2]
[327393635,1716040265451,-500.0,0.00028767,2]
[327393636,1716040265460,-614.77,0.00028767,2]
[327393637,1716040265469,-500.76,0.00028767,2]
[327393638,1716040265479,-500.0,0.00028767,2]
[327393639,1716040265489,-160.6540895,0.00028767,2]
[327393640,1716040265501,-2250.78,0.00028767,2]
[327393641,1716040265510,-620.98,0.00028767,2]
[327393642,1716040265519,-500.0,0.00028767,2]
[327393643,1716040265582,-500.0,0.00028767,2]
[327393644,1716040265592,-827.43,0.00028767,2]
[327393645,1716040265601,-500.0,0.00028767,2]
[327393646,1716040265610,-1113.89,0.00028767,2]
[327393647,1716040265619,-1491.8,0.00028767,2]
[327393648,1716040265629,-500.0,0.00028767,2]
[327393649,1716040265639,-500.0,0.00028767,2]
[327393650,1716040265648,-500.0,0.00028767,2]
[327393651,1716040265658,-702.42,0.00028767,2]
[327393652,1716040265669,-854.23,0.00028767,2]
[327393653,1716040265678,-728.49,0.00028767,2]
[327393654,1716040265688,-1117.81,0.00028767,2]
[327393655,1716040265697,-500.0,0.00028767,2]
[327393656,1716040265706,-500.0,0.00028767,2]
[327393657,1716040265715,-168.19,0.00028767,2]
[327393658,1716040265724,-512.11,0.00028767,2]
[327393659,1716040265733,-243.79212758,0.00028767,2]
[327393660,1716040265744,-520.85,0.00028767,2]
[327393661,1716040265754,-500.0,0.00028767,2]
[327393662,1716040265763,-712.99,0.00028767,2]
[327393663,1716040265772,-500.0,0.00028767,2]
[327393664,1716040265782,-937.76,0.00028767,2]
[327393665,1716040265791,-760.52,0.00028767,2]
[327393666,1716040265801,-500.0,0.00028767,2]
[327393667,1716040265810,-500.0,0.00028767,2]
[327393668,1716040265819,-1038.61,0.00028767,2]
[327393669,1716040265829,-500.0,0.00028767,2]
[327393670,1716040265838,-1229.83,0.00028767,2]
[327393671,1716040265848,-500.0,0.00028767,2]
[327393672,1716040265858,-3234.95,0.00028767,2]
[327393673,1716040265870,-1556.91,0.00028767,2]
[327393674,1716040265879,-500.0,0.00028767,2]
[327393675,1716040265889,-740.54,0.00028767,2]
[327393676,1716040265898,-906.41,0.00028767,2]
[327393677,1716040265907,-799.21,0.00028767,2]
[327393678,1716040265918,-603.91,0.00028767,2]
[327393679,1716040265927,-500.0,0.00028767,2]
[327393680,1716040265936,-1371.53,0.00028767,2]
[327393681,1716040265948,-7464.62,0.00028767,2]
[327393682,1716040265958,-4579.7,0.00028767,2]
[327393683,1716040265967,-4120.53,0.00028767,2]
[327393684,1716040265976,-703.41,0.00028767,2]
[327393685,1716040265986,-500.0,0.00028767,2]
[327393686,1716040265996,-500.0,0.00028767,2]
[327393687,1716040266006,-3200.63,0.00028767,2]
[327393688,1716040266015,-5056.19,0.00028767,2]
[327393689,1716040266024,-500.0,0.00028767,2]
[327393690,1716040266034,-500.0,0.00028767,2]
[327393691,1716040266043,-1772.22,0.00028767,2]
[327393692,1716040266052,-4278.55,0.00028767,2]
[327393693,1716040266061,-500.0,0.00028767,2]
[327393694,1716040266072,-596.82,0.00028767,2]
[327393695,1716040266082,-698.31,0.00028767,2]
[327393696,1716040266091,-2025.92,0.00028767,2]
[327393697,1716040266100,-500.0,0.00028767,2]
[327393698,1716040266110,-500.0,0.00028767,2]
[327393699,1716040266119,-157.41203045,0.00028767,2]
[327393700,1716040266128,-500.0,0.00028767,2]
[327393701,1716040266137,-1650.0,0.00029,2]
[327393702,1716040266146,-500.0,0.00029041,2]
[327393703,1716040266155,-500.0,0.00029041,2]
[327393704,1716040266165,-500.0,0.00029041,2]
[327393705,1716040266174,-500.0,0.00029041,2]
[327393706,1716040266183,-500.0,0.00029041,2]
[327393707,1716040266193,-500.0,0.00029041,2]
[327393708,1716040266202,-500.0,0.00029041,2]
[327393709,1716040266211,-500.0,0.00029041,2]
[327393710,1716040266222,-500.0,0.00029041,2]
[327393711,1716040266231,-409.35290028,0.00029041,2]
[327393712,1716040266243,-500.0,0.00029041,2]
[327393713,1716040266252,-500.0,0.00029041,2]
[327393714,1716040266262,-500.0,0.00029041,2]
[327393715,1716040266271,-500.0,0.00029041,2]
[327393716,1716040266280,-500.0,0.00029041,2]
[327393717,1716040266289,-500.0,0.00029041,2]
[327393718,1716040266298,-500.0,0.00029041,2]
[327393719,1716040266307,-507.06,0.00029041,2]
[327393720,1716040266316,-500.0,0.00029041,2]
[327393721,1716040266325,-2059.56,0.00029041,2]
[327393722,1716040266334,-583.83,0.00029041,2]
[327393723,1716040266343,-2875.29,0.00029041,2]
[327393724,1716040266352,-564.42,0.00029041,2]
[327393725,1716040266361,-500.0,0.00029041,2]
[327393726,1716040266370,-204.37917136,0.00029041,2]
[327393727,1716040266379,-183.6401412,0.00029041,2]
[327393728,1716040266387,-631.33129463,0.00029041,2]
[327393729,1716040266397,-500.0,0.00029041,2]
[327393730,1716040266406,-500.0,0.00029041,2]
[327393731,1716040266415,-245.47762947,0.00029041,2]
[327393732,1716040266423,-500.0,0.00029041,2]
[327393733,1716040266432,-502.26,0.00029041,2]
[327393734,1716040266441,-248.43539133,0.00029041,2]
[327393735,1716040266450,-522.68,0.00029041,2]
[327393736,1716040266459,-2660.98,0.00029041,2]
[327393737,1716040266467,-500.0,0.00029041,2]
[327393738,1716040266476,-500.0,0.00029041,2]
[327393739,1716040266485,-500.0,0.00029041,2]
[327393740,1716040266496,-500.0,0.00029041,2]
[327393741,1716040266505,-1098.65,0.00029041,2]
[327393742,1716040266515,-500.0,0.00029041,2]
[327393743,1716040266523,-500.0,0.00029041,2]
[327393744,1716040266532,-670.06,0.00029041,2]
[327393745,1716040266541,-500.0,0.00029041,2]
[327393746,1716040266550,-526.97,0.00029041,2]
[327393747,1716040266559,-500.0,0.00029041,2]
[327393748,1716040266569,-1180.45,0.00029041,2]
[327393749,1716040266578,-2140.28,0.00029041,2]
[327393750,1716040266587,-500.0,0.00029041,2]
[327393751,1716040266596,-1792.29,0.00029041,2]
[327393752,1716040266605,-500.0,0.00029041,2]
[327393753,1716040266614,-754.09,0.00029041,2]
[327393754,1716040266623,-500.0,0.00029041,2]
[327393755,1716040266632,-1739.94,0.00029041,2]
[327393756,1716040266641,-500.0,0.00029041,2]
[327393757,1716040266650,-619.83654688,0.00029041,2]
[327393758,1716040266659,-500.0,0.00029041,2]
[327393759,1716040266668,-2203.95,0.00029041,2]
[327393760,1716040266677,-500.0,0.00029041,2]
[327393761,1716040266686,-500.0,0.00029041,2]
[327393762,1716040266695,-500.0,0.00029041,2]
[327393763,1716040266704,-500.0,0.00029041,2]
[327393764,1716040266714,-500.0,0.00029041,2]
[327393765,1716040266723,-500.0,0.00029041,2]
[327393766,1716040266732,-626.93,0.00029041,2]
[327393767,1716040266742,-500.0,0.00029041,2]
[327393768,1716040266752,-500.0,0.00029041,2]
[327393769,1716040266761,-500.0,0.00029041,2]
[327393770,1716040266770,-500.0,0.00029041,2]
[327393771,1716040266779,-250.34182575,0.00029041,2]
[327393772,1716040266788,-500.0,0.00029041,2]
[327393773,1716040266797,-2589.11,0.00029041,2]
[327393774,1716040266806,-2196.61,0.00029041,2]
[327393775,1716040266815,-843.12,0.00029041,2]
[327393776,1716040266825,-1927.98,0.00029041,2]
[327393777,1716040266834,-500.0,0.00029041,2]
[327393778,1716040266843,-500.0,0.00029041,2]
[327393779,1716040266852,-500.0,0.00029041,2]
[327393780,1716040266861,-2339.68,0.00029041,2]
[327393781,1716040266876,-500.0,0.00029041,2]
[327393782,1716040266886,-500.0,0.00029041,2]
[327393783,1716040266895,-500.0,0.00029041,2]
[327393784,1716040266904,-952.74,0.00029041,2]
[327393785,1716040266913,-500.0,0.00029041,2]
[327393786,1716040266923,-473.27043428,0.00029041,2]
[327393787,1716040266932,-700.22,0.00029041,2]
[327393788,1716040266942,-500.0,0.00029041,2]
[327393789,1716040266951,-500.0,0.00029041,2]
[327393790,1716040266961,-500.0,0.00029041,2]
[327393791,1716040266970,-500.0,0.00029041,2]
[327393792,1716040266980,-500.0,0.00029041,2]
[327393793,1716040266989,-500.0,0.00029041,2]
[327393794,1716040267000,-500.0,0.00029041,2]
[327393795,1716040267009,-1204.38,0.00029041,2]
[327393796,1716040267018,-500.0,0.00029041,2]
[327393797,1716040267027,-578.65,0.00029041,2]
[327393798,1716040267037,-1353.98,0.00029041,2]
[327393799,1716040267047,-500.0,0.00029041,2]
[327393800,1716040267056,-500.0,0.00029041,2]
[327393801,1716040267065,-180.46,0.00029041,2]
[327393802,1716040267074,-500.0,0.00029041,2]
[327393803,1716040267083,-500.0,0.00029041,2]
[327393804,1716040267092,-500.0,0.00029041,2]
[327393805,1716040267102,-500.0,0.00029041,2]
[327393806,1716040267111,-1233.38,0.00029041,2]
[327393807,1716040267121,-500.0,0.00029041,2]
[327393808,1716040267130,-647.86,0.00029041,2]
[327393809,1716040267139,-500.0,0.00029041,2]
[327393810,1716040267148,-3001.93,0.00029041,2]
[327393811,1716040267158,-500.0,0.00029041,2]
[327393812,1716040267167,-1093.23,0.00029041,2]
[327393813,1716040267177,-500.0,0.00029041,2]
[327393814,1716040267186,-544.14,0.00029041,2]
[327393815,1716040267195,-151.0,0.00029041,7]
[327393816,1716040267204,-500.0,0.00029041,2]
[327393817,1716040267214,-500.0,0.00029041,2]
[327393818,1716040267223,-151.0,0.00029041,7]
[327393819,1716040267232,-1402.06,0.00029041,2]
[327393820,1716040267241,-959.13,0.00029041,2]
[327393821,1716040267254,-500.0,0.00029041,2]
[327393822,1716040267264,-500.0,0.00029041,2]
[327393823,1716040267273,-500.0,0.00029041,2]
[327393824,1716040267283,-609.74,0.00029041,2]
[327393825,1716040267292,-500.0,0.00029041,2]
[327393826,1716040267302,-500.0,0.00029041,2]
[327393827,1716040267312,-500.0,0.00029041,2]
[327393828,1716040267321,-500.0,0.00029041,2]
[327393829,1716040267330,-3017.04,0.00029041,2]
[327393830,1716040267340,-500.0,0.00029041,2]
[327393831,1716040267349,-533.05,0.00029041,2]
[327393832,1716040267359,-500.0,0.00029041,2]
[327393833,1716040267368,-1788.12,0.00029041,2]
[327393834,1716040267378,-980.4,0.00029041,2]
[327393835,1716040267388,-151.0,0.00029041,7]
[327393836,1716040267398,-714.06,0.00029041,2]
[327393837,1716040267407,-500.0,0.00029041,2]
[327393838,1716040267417,-500.0,0.00029041,2]
[327393839,1716040267427,-915.26,0.00029041,2]
[327393840,1716040267436,-249.7994,0.00029041,7]
[327393841,1716040267446,-2281.2,0.00029041,2]
[327393842,1716040267455,-500.0,0.00029041,2]
[327393843,1716040267465,-249.7994,0.00029041,7]
[327393844,1716040267475,-969.27,0.00029041,2]
[327393845,1716040267484,-512.5732866,0.00029041,2]
[327393846,1716040267494,-1067.09,0.00029041,2]
[327393847,1716040267505,-1797.23,0.00029041,2]
[327393848,1716040267515,-1506.83,0.00029041,2]
[327393849,1716040267524,-737.86,0.00029041,2]
[327393850,1716040267534,-397.86057764,0.00029041,2]
[327393851,1716040267544,-625.58,0.00029041,2]
[327393852,1716040267553,-500.0,0.00029041,2]
[327393853,1716040267563,-500.0,0.00029041,2]
[327393854,1716040267573,-500.0,0.00029041,2]
[327393855,1716040267582,-500.0,0.00029041,2]
[327393856,1716040267591,-3336.88,0.00029041,2]
[327393857,1716040267601,-6913.64,0.00029041,2]
[327393858,1716040267610,-709.55,0.00029041,2]
[327393859,1716040267620,-794.08,0.00029041,2]
[327393860,1716040267629,-2267.04,0.00029041,2]
[327393861,1716040267639,-5959.23,0.00029041,2]
[327393862,1716040267648,-500.0,0.00029041,2]
[327393863,1716040267658,-586.84,0.00029041,2]
[327393864,1716040267668,-840.47,0.00029041,2]
[327393865,1716040267678,-2092.24,0.00029041,2]
[327393866,1716040267688,-500.0,0.00029041,2]
[327393867,1716040267697,-594.07,0.00029041,2]
[327393868,1716040267706,-500.0,0.00029041,2]
[327393869,1716040267716,-500.0,0.00029041,2]
[327393870,1716040267726,-732.23,0.00029041,2]
[327393871,1716040267736,-215.45337691,0.00029041,2]
[327393872,1716040267747,-735.33,0.00029041,2]
[327393873,1716040267756,-500.0,0.00029041,2]
[327393874,1716040267766,-500.0,0.00029041,2]
[327393875,1716040267775,-500.0,0.00029041,2]
[327393876,1716040267784,-2493.68,0.00029041,2]
[327393877,1716040267793,-8945.82,0.00029041,2]
[327393878,1716040267803,-500.0,0.00029041,2]
[327393879,1716040267813,-1410.43,0.00029041,2]
[327393880,1716040267823,-500.0,0.00029041,2]
[327393881,1716040267832,-1603.71,0.00029041,2]
[327393882,1716040267842,-500.0,0.00029041,2]
[327393883,1716040267851,-1234.82,0.00029041,2]
[327393884,1716040267861,-500.0,0.00029041,2]
[327393885,1716040267875,-500.0,0.00029041,2]
[327393886,1716040267886,-500.0,0.00029041,2]
[327393887,1716040267895,-964.54,0.00029041,2]
[327393888,1716040267907,-906.95,0.00029041,2]
[327393889,1716040267916,-2869.47,0.00029041,2]
[327393890,1716040267926,-643.98,0.00029041,2]
[327393891,1716040267935,-500.0,0.00029041,2]
[327393892,1716040267945,-739.56,0.00029041,2]
[327393893,1716040267954,-1338.53,0.00029041,2]
[327393894,1716040267964,-500.0,0.00029041,2]
[327393895,1716040267974,-500.0,0.00029041,2]
[327393896,1716040267983,-561.33,0.00029041,2]
[327393897,1716040267993,-702.2,0.00029041,2]
[327393898,1716040268004,-1490.89,0.00029041,2]
[327393899,1716040268014,-1386.7,0.00029041,2]
[327393900,1716040268023,-500.0,0.00029041,2]
[327393901,1716040268032,-500.0,0.00029041,2]
[327393902,1716040268043,-775.1,0.00029041,2]
[327393903,1716040268052,-935.89,0.00029041,2]
[327393904,1716040268063,-545.32,0.00029041,2]
[327393905,1716040268073,-561.56,0.00029041,2]
[327393906,1716040268083,-500.0,0.00029041,2]
[327393907,1716040268092,-500.0,0.00029041,2]
[327393908,1716040268102,-500.0,0.00029041,2]
[327393909,1716040268112,-619.78,0.00029041,2]
[327393910,1716040268122,-621.39,0.00029041,2]
[327393911,1716040268131,-500.0,0.00029041,2]
[327393912,1716040268141,-500.0,0.00029041,2]
[327393913,1716040268151,-585.77,0.00029041,2]
[327393914,1716040268160,-3010.58,0.00029041,2]
[327393915,1716040268170,-3560.8,0.00029041,2]
[327393916,1716040268179,-500.0,0.00029041,2]
[327393917,1716040268189,-500.0,0.00029041,2]
[327393918,1716040268198,-599.07,0.00029041,2]
[327393919,1716040268208,-327.79272739,0.00029041,2]
[327393920,1716040268218,-500.0,0.00029041,2]
[327393921,1716040268228,-3063.61,0.00029041,2]
[327393922,1716040268239,-500.0,0.00029041,2]
[327393923,1716040268250,-653.42,0.00029041,2]
[327393924,1716040268260,-814.87,0.00029041,2]
[327393925,1716040268269,-698.86,0.00029041,2]
[327393926,1716040268279,-1099.41,0.00029041,2]
[327393927,1716040268290,-1201.24,0.00029041,2]
[327393928,1716040268300,-500.0,0.00029041,2]
[327393929,1716040268311,-622.78,0.00029041,2]
[327393930,1716040268320,-500.0,0.00029041,2]
[327393931,1716040268330,-674.85,0.00029041,2]
[327393932,1716040268339,-656.56,0.00029041,2]
[327393933,1716040268349,-590.6,0.00029041,2]
[327393934,1716040268359,-500.0,0.00029041,2]
[327393935,1716040268368,-783.59,0.00029041,2]
[327393936,1716040268379,-1179.24,0.00029041,2]
[327393937,1716040268388,-874.12,0.00029041,2]
[327393938,1716040268398,-500.0,0.00029041,2]
[327393939,1716040268408,-500.0,0.00029041,2]
[327393940,1716040268417,-558.78,0.00029041,2]
[327393941,1716040268427,-2108.16,0.00029041,2]
[327393942,1716040268437,-1661.91,0.00029041,2]
[327393943,1716040268446,-666.13,0.00029041,2]
[327393944,1716040268456,-2781.87,0.00029041,2]
[327393945,1716040268465,-500.0,0.00029041,2]
[327393946,1716040268475,-500.0,0.00029041,2]
[327393947,1716040268485,-893.42,0.00029041,2]
[327393948,1716040268495,-1207.31,0.00029041,2]
[327393949,1716040268506,-500.0,0.00029041,2]
[327393950,1716040268516,-840.57,0.00029041,2]
[327393951,1716040268525,-1041.69,0.00029041,2]
[327393952,1716040268535,-1214.32,0.00029041,2]
[327393953,1716040268544,-1712.9,0.00029041,2]
[327393954,1716040268555,-559.22688288,0.00029041,2]
[327393955,1716040268565,-500.0,0.00029041,2]
[327393956,1716040268576,-2408.0,0.00029041,2]
[327393957,1716040268586,-1126.37,0.00029041,2]
[327393958,1716040268596,-521.8082066,0.00029041,2]
[327393959,1716040268606,-614.77,0.00029041,2]